[Event "21st Open Gran Hotel Bali-A 2024"]
[Site "Benidorm"]
[Date "2024.11.29"]
[Round "1.13"]
[White "Tudela Gonzalez, Victor"]
[Black "Cruz Lledo, Pablo"]
[Result "0-1"]
[ECO "D20"]
[WhiteElo "2041"]
[BlackElo "2411"]
[Annotator "TA"]
[PlyCount "108"]
[EventDate "2024.11.26"]
[EventType "swiss"]
[EventCountry "ESP"]
[SourceTitle "playchess.com"]
[Source "ChessBase"]
[SourceQuality "1"]
[TimeControl "5400+30"]

{[%evp 37,108,3,412,387,761,0,0,0,-7,-35,-31,-33,-33,-69,-69,-131,-20,-25,44,0,0,0,0,0,0,0,0,0,0,0,0,0,0,0,0,0,0,0,0,0,0,0,0,0,0,0,0,0,0,0,0,-29980,-29981,-29981,-29982,-29982,-29983,-29983,-29985,-29986,-29987,-29987,-29988,-29988,-29989,-29989,-29990,-29994,-29995,-29995,-29992,-29994,-29995]} 1. d4 {[%emt 0:00:10]} d5 {[%emt 0:03:12]} 2. c4 {[%emt 0:00:52]} dxc4 {[%emt 0:00:07]} 3. e4 {[%emt 0:00:55]} b5 {[%emt 0:01:33]} 4. a4 {[%emt 0:03:46]} c6 {[%emt 0:00:03]} 5. axb5 {[%emt 0:04:50]} cxb5 {[%emt 0:00:06]} 6. Nc3 {[%emt 0:00:09]} Qb6 {[%emt 0:00:08]} 7. Nd5 {[%emt 0:03:27]} Qb7 {[%emt 0:00:04]} 8. Bf4 {[%emt 0:11:35]} e5 {[%emt 0:00:04]} 9. Bxe5 {[%emt 0:05:04]} Nd7 {[%emt 0:00:05]} 10. Bg3 {[%emt 0:07:47]} Ngf6 {[%emt 0:00:13]} 11. Nc7+ {[%emt 0:03:02]} Kd8 {[%emt 0:00:10]} 12. f3 {[%emt 0:00:24]} Bb4+ {[%emt 0:06:22]} 13. Kf2 {[%emt 0:00:48]} Nxe4+ {[%emt 0:03:19]} 14. fxe4 {[%emt 0:01:46]} Nf6 {[%emt 0:00:08]} 15. Nf3 {[%emt 0:17:45]} Nxe4+ {[%emt 0:01:10]} 16. Kg1 {[%emt 0:00:09]} Nxg3 {[%emt 0:00:22]} 17. Nxa8 {[%emt 0:00:10]} Nxh1 {[%emt 0:01:09]} 18. Ne5 {[%emt 0:00:13]} a5 {[%emt 0:42:05]} 19. Qf3 $2 {[%emt 0:04:55]} (19. d5 $1 $18 Ng3 (19... Nf2 $2 20. Qd4 $18) 20. hxg3 Ke8) 19... f6 $2 {[%emt 0:10:28][%mdl 8192]} (19... Qxf3 $11 {and Black stays safe.} 20. gxf3 Rf8) 20. Nc6+ $18 {[%emt 0:06:36]} (20. Kxh1 $2 fxe5 21. Qe3 Qxa8 $19) 20... Kd7 $2 {[%emt 0:00:28]} (20... Ke8 21. Qh5+ (21. Nxa5 Qxf3 22. gxf3 Kd7 $16) 21... g6) 21. Nxb4 $2 {[%emt 0:03:25]} (21. Nxa5 Qxf3 22. gxf3 Kd6 $14) (21. Qd5+ $18 Ke8 22. Nxb4 (22. Kxh1 Qxa8 23. Nxb4 Qxd5 $18) 22... Qxd5 23. Nc7+ (23. Nxd5 Kd7 $18) 23... Kd7 24. Nbxd5) 21... Qxf3 $11 {[%emt 0:00:39]} 22. gxf3 {[%emt 0:00:18]} axb4 {[%emt 0:00:12]} 23. Nb6+ {[%emt 0:03:27]} (23. Kxh1 Bb7 (23... Kc6 24. Bg2 $11) 24. Ra7 (24. Nb6+ Kc7 $17) 24... Rb8) 23... Kc6 {[%emt 0:02:04]} 24. Nxc8 {[%emt 0:00:21]} Rxc8 {[%emt 0:00:02]} 25. Kxh1 {[%emt 0:01:50]} Kd5 {[%emt 0:01:15]} 26. Kg1 {[%emt 0:02:19]} (26. Kg2 $15) 26... b3 {[%emt 0:00:22]} (26... Kxd4 $6 27. Kf2 $11) (26... c3 $1 $17 27. bxc3 (27. Bxb5 $2 cxb2 28. Rf1 Kxd4 $19) 27... bxc3 28. Bxb5 c2 (28... Kxd4 29. Rd1+ Ke3 30. Re1+ Kxf3 31. Bd3 $11)) 27. Kf2 {[%emt 0:03:21]} b4 {[%emt 0:00:31]} (27... Kxd4 $11 28. Bh3 Rc7) 28. Bh3 {[%emt 0:06:53]} Rc7 {[%emt 0:01:07]} 29. Ra5+ {[%emt 0:03:56]} Kxd4 {[%emt 0:00:50]} 30. Rb5 {[%emt 0:00:27]} Kd3 {[%emt 0:14:21]} 31. Bf5+ {[%emt 0:01:40]} (31. Rxb4 $5 Kc2 $8 32. Be6 Kxb2 33. Rxc4 (33. Bxc4 Kc3 $14) 33... Rxc4 34. Bxc4 $16) 31... Kd2 {[%emt 0:00:16]} 32. Rxb4 {[%emt 0:00:03]} (32. Bxh7 Kc1 33. Rxb4 Kxb2 $17) 32... Kc1 $1 {[%emt 0:00:44]} 33. Be6 {[%emt 0:00:11]} (33. Bxh7 Kxb2 34. Bg8 Kc3 $17) 33... c3 {[%emt 0:02:11]} 34. bxc3 {[%emt 0:01:12]} (34. Rxb3 cxb2 35. Bf5 Rc5) 34... b2 {[%emt 0:00:02]} 35. Bf5 {[%emt 0:00:25]} g6 {[%emt 0:00:20]} (35... Rxc3 36. Bxh7 Rc2+ 37. Bxc2 Kxc2 38. Ke3 $18 (38. Rc4+ Kb3 $16)) 36. Be4 {[%emt 0:02:23]} Rxc3 {[%emt 0:02:22]} (36... f5 $5 37. Bd3 Rxc3 $11) 37. Ke2 $1 {[%emt 0:00:15]} f5 {[%emt 0:00:21]} 38. Bd3 {[%emt 0:00:34]} Rc2+ {[%emt 0:05:33]} (38... Rxd3 $6 39. Rc4+ $16) 39. Bxc2 {[%emt 0:00:45]} Kxc2 {[%emt 0:00:02]} 40. Ke3 {[%emt 0:02:22]} b1=Q {[%emt 0:00:08]} (40... b1=B $2 {perishes.} 41. Rb7 $18) 41. Rxb1 {[%emt 0:00:00]} Kxb1 {[%emt 0:00:12]} 42. Kf4 {[%emt 0:00:00]} Kc2 {[%emt 0:00:01]} (42... Kc1 $5 43. Kg5 $8 Kd2 $11) 43. Kg5 {[%emt 0:00:00]} Kd3 {[%emt 0:00:13]} (43... Kd2 $5 44. Kh6 $8 Ke3 45. Kxh7 g5 $11 (45... Kxf3 46. Kxg6 f4 47. h4 $11)) 44. h4 $2 {[%emt 0:00:17][%mdl 8192]} (44. Kh6 $11) 44... Ke3 {[%emt 0:00:26]} 45. Kh6 {[%emt 0:00:15]} Kf4 $1 {[%emt 0:03:26]} (45... Kxf3 46. Kxh7 f4 47. Kxg6 $11) 46. Kxh7 {[%emt 0:00:24]} g5 {[%emt 0:00:01]} (46... Kxf3 47. Kxg6 f4 48. h5 $11) 47. h5 {[%emt 0:00:39] [#]} g4 $1 {[%emt 0:00:14]} (47... Kxf3 48. h6 g4 49. Kg6 $11) 48. fxg4 {[%emt 0:00:15]} fxg4 {[%emt 0:00:02]} 49. h6 {[%emt 0:00:01] [#]} g3 $1 {[%emt 0:00:12]} 50. Kg8 {[%emt 0:00:07]} g2 {[%emt 0:00:04]} 51. h7 {[%emt 0:00:03]} g1=Q+ {[%emt 0:00:08]} ({Not} 51... g1=R+ 52. Kf8 Rh1 53. Kg8 $11) 52. Kh8 {[%emt 0:00:04]} Kg5 {[%emt 0:01:25]} 53. Kg7 {[%emt 0:00:23]} Qa1+ {[%emt 0:00:50]} 54. Kg8 {[%emt 0:00:09]} Kg6 {[%emt 0:05:38]} 0-1

[Event "21st Open Gran Hotel Bali-A 2024"]
[Site "Benidorm"]
[Date "2024.11.29"]
[Round "1.14"]
[White "Domingo Nunez, Ruben"]
[Black "Alonso Valiente, Alexis"]
[Result "1-0"]
[ECO "B50"]
[WhiteElo "2409"]
[BlackElo "2037"]
[Annotator "TA"]
[PlyCount "183"]
[EventDate "2024.11.26"]
[EventType "swiss"]
[EventCountry "ESP"]
[SourceTitle "playchess.com"]
[Source "ChessBase"]
[SourceQuality "1"]
[TimeControl "5400+30"]

{[%evp 81,183,-180,0,-7,0,0,0,0,0,-15,58,97,51,27,84,60,52,0,0,0,0,0,0,-7,0,-354,-418,-364,-335,-295,-44,-485,-475,-381,-45,-45,0,0,8,8,11,10,11,11,12,11,12,11,12,12,16,0,63,0,0,0,0,0,158,163,158,158,158,158,158,79,76,72,72,42,42,42,29964,29964,29970,29971,29972,29973,29973,29965,29962,29965,29974,29974,29974,29973,29972,29972,29972,29972,29975,29974,29974,29974,29973,29973,29970,0,29967,29970,29972,29967,29973,29972]} 1. e4 {[%emt 0:00:21]} c5 {[%emt 0:00:37]} 2. Nf3 {[%emt 0:00:24]} d6 {[%emt 0:01:03]} 3. c3 {[%emt 0:00:43]} Nf6 {[%emt 0:01:02]} 4. Be2 {[%emt 0:00:03]} g6 {[%emt 0:01:17]} 5. O-O {[%emt 0:00:24]} Bg7 {[%emt 0:00:19]} 6. Re1 {[%emt 0:00:08]} O-O {[%emt 0:00:31]} 7. Bf1 {[%emt 0:00:02]} Nc6 {[%emt 0:00:30]} 8. a3 {[%emt 0:00:03]} h6 {[%emt 0:07:20]} 9. h3 {[%emt 0:02:41]} e5 {[%emt 0:17:22]} 10. b4 {[%emt 0:09:48]} a6 {[%emt 0:02:45]} 11. Bb2 {[%emt 0:15:42]} Re8 {[%emt 0:08:17]} 12. d3 {[%emt 0:06:12]} Be6 {[%emt 0:07:28]} 13. Nbd2 {[%emt 0:03:21]} b5 {[%emt 0:12:16]} 14. Nb3 {[%emt 0:09:27]} Qb6 {[%emt 0:05:01]} 15. Bc1 {[%emt 0:00:20]} cxb4 {[%emt 0:02:37]} 16. Be3 {[%emt 0:04:12]} Qc7 {[%emt 0:04:21]} 17. axb4 {[%emt 0:01:33]} a5 {[%emt 0:00:26]} 18. d4 {[%emt 0:08:37]} Nxe4 {[%emt 0:02:25]} 19. Rc1 {[%emt 0:00:02]} Bc4 {[%emt 0:04:20]} 20. d5 {[%emt 0:10:51]} a4 {[%emt 0:00:17]} 21. Bxc4 {[%emt 0:02:42]} bxc4 {[%emt 0:00:16]} 22. Nbd2 {[%emt 0:00:02]} Nxd2 {[%emt 0:00:21]} 23. Qxd2 {[%emt 0:00:05]} Ne7 {[%emt 0:00:56]} 24. Bxh6 {[%emt 0:00:06]} Bh8 {[%emt 0:02:41]} 25. Bg5 {[%emt 0:07:30]} Qb7 {[%emt 0:04:05]} 26. Bxe7 {[%emt 0:07:25]} Qxe7 {[%emt 0:00:03]} 27. Nd4 {[%emt 0:00:15]} Qb7 {[%emt 0:04:12]} 28. Nc6 {[%emt 0:02:05]} Ra6 {[%emt 0:01:56]} 29. h4 {[%emt 0:09:04]} Bg7 {[%emt 0:05:38]} 30. h5 {[%emt 0:00:14]} gxh5 {[%emt 0:01:37]} 31. Qg5 {[%emt 0:00:00]} Rxc6 {[%emt 0:00:14]} 32. dxc6 {[%emt 0:00:01]} Qxc6 {[%emt 0:00:04]} 33. Re3 {[%emt 0:00:09]} h4 {[%emt 0:00:38]} 34. Qxh4 {[%emt 0:02:06]} d5 {[%emt 0:00:51]} 35. Rg3 {[%emt 0:00:18]} Kf8 {[%emt 0:00:47]} 36. b5 {[%emt 0:00:49]} Qh6 {[%emt 0:01:05]} 37. Qxh6 {[%emt 0:00:12]} Bxh6 {[%emt 0:00:01]} 38. Ra1 {[%emt 0:00:00]} Ra8 {[%emt 0:01:01]} 39. Rh3 {[%emt 0:01:29]} Kg7 {[%emt 0:00:29]} 40. Rh5 {[%emt 0:00:32]} f6 {[%emt 0:00:22]} 41. g3 {[%emt 0:00:31]} a3 $2 {[%emt 0:00:25]} (41... Bd2 $19 42. b6 Bxc3) 42. b6 {[%emt 0:00:18]} Rb8 {[%emt 0:01:00]} (42... Kg6 {with more complications.} 43. Rh1 Bd2 44. Kg2 Bxc3 45. b7 Rb8) 43. Rxa3 {[%emt 0:00:29]} Rxb6 {[%emt 0:00:02]} 44. Kg2 {[%emt 0:00:36]} Kg6 {[%emt 0:01:26]} 45. Rh1 {[%emt 0:00:12]} Bf8 {[%emt 0:01:00]} (45... Rb2 $11) 46. Ra5 {[%emt 0:00:17]} d4 {[%emt 0:00:19]} 47. Rh4 {[%emt 0:01:04]} Rd6 {[%emt 0:01:36]} (47... Rc6 $11) 48. Ra8 {[%emt 0:00:34]} Be7 {[%emt 0:00:38]} 49. Ra4 {[%emt 0:00:13]} ({White should try} 49. Rc8 $14 d3 50. Rh1 (50. Rcxc4 $2 d2 $19)) 49... d3 $11 {[%emt 0:00:11]} (49... f5 $6 50. Rh1 $16) 50. Rh1 {[%emt 0:00:33]} (50. Rhxc4 d2 51. Ra1 (51. Rg4+ $2 Kf5 $19) 51... d1=Q $19 (51... d1=B $2 52. f4 $19)) 50... Rc6 {[%emt 0:00:17]} 51. Kf3 {[%emt 0:00:42]} f5 {[%emt 0:00:02]} 52. Rha1 {[%emt 0:00:32]} Kg5 {[%emt 0:00:39]} 53. Ra5 $2 {[%emt 0:00:19][%mdl 8192]} (53. Kg2 $11 {and White is okay.}) 53... e4+ $1 $19 {[%emt 0:00:27]} 54. Kg2 {[%emt 0:00:03]} Bf6 {[%emt 0:00:13]} 55. R5a3 {[%emt 0:01:01]} Rd6 $2 {[%emt 0:00:32]} (55... f4 $1 $19 {[%cal Rf4f3]} 56. Ra5+ Kg6 (56... Kg4 57. Rd5 $17) 57. gxf4 Bxc3 58. Rg5+ Kf7 59. Ra7+ Ke6 60. f5+ Ke5) 56. Kf1 $2 {[%emt 0:00:32][%mdl 8192]} (56. Rb1 $1 $15) 56... Kg4 {[%emt 0:00:14]} 57. Kg2 {[%emt 0:00:32]} d2 $2 {[%emt 0:00:20]} (57... f4 $19 58. gxf4 Kxf4) 58. Rd1 $15 {[%emt 0:00:03]} Rd3 {[%emt 0:00:04]} 59. Ra4 {[%emt 0:00:56]} Bxc3 {[%emt 0:00:53]} 60. Rxc4 {[%emt 0:00:01]} Ba5 {[%emt 0:00:49]} 61. Rc8 {[%emt 0:00:13]} Kg5 {[%emt 0:00:56]} 62. Rg8+ {[%emt 0:01:16]} Kf6 {[%emt 0:00:04]} 63. Ra8 {[%emt 0:00:02]} Bb4 {[%emt 0:00:29]} 64. Kf1 {[%emt 0:00:06]} Ke5 {[%emt 0:01:13]} 65. Ke2 {[%emt 0:00:27]} Kf6 {[%emt 0:01:40]} 66. Rb1 {[%emt 0:01:17]} Ba3 {[%emt 0:00:00]} (66... Bc5 $11) 67. Kd1 {[%emt 0:00:37]} (67. Rb6+ $14 Bd6 68. Kd1) 67... Bc5 $1 $11 {[%emt 0:00:19]} 68. Ke2 {[%emt 0:00:33]} Bxf2 {[%emt 0:00:25]} 69. g4 {[%emt 0:00:29]} fxg4 $2 {[%emt 0:00:33]} ({Black should play} 69... f4 $11 70. Re8 Be3 71. Rxe4 Rd8) 70. Rf8+ $16 {[%emt 0:00:03]} (70. Kxf2 d1=Q (70... d1=B 71. Rb6+ Ke5 72. Rb5+ Kd4 73. Rb4+ Kc5 74. Rxe4 $11) (70... d1=R 71. Rxd1 Rxd1 72. Kg3 $11) 71. Rxd1 Rxd1 $11) 70... Kg5 {[%emt 0:00:34]} 71. Rxf2 {[%emt 0:00:02]} g3 {[%emt 0:01:09]} 72. Rf8 {[%emt 0:00:56]} Kg4 {[%emt 0:00:00] [#]} 73. Re8 {[%emt 0:01:01]} ({White must play} 73. Rg8+ $1 Kh3 74. Rh1+ Kg2 75. Rd1) 73... Rd4 {[%emt 0:00:00]} 74. Rg8+ {[%emt 0:00:09]} Kh3 {[%emt 0:00:31]} 75. Rh8+ {[%emt 0:00:51]} Kg4 $1 {[%emt 0:00:23]} 76. Rd1 {[%emt 0:00:06]} g2 $2 {[%emt 0:00:42][%mdl 8192] [#]} (76... Rd6 $14) 77. Kf2 $1 {[%emt 0:00:32]} (77. Rxd2 Rxd2+ (77... g1=R $2 {loses.} 78. Rxd4 Kf5 79. Rh5+ Kg6 80. Ra5 $18) (77... g1=N+ 78. Ke3 $11) 78. Kxd2 Kg3 $11 (78... e3+ 79. Ke2 $11)) 77... Rd3 {[%emt 0:00:33]} 78. Kxg2 {[%emt 0:00:48]} e3 {[%emt 0:00:12]} 79. Kf1 {[%emt 0:00:26]} Kf3 {[%emt 0:01:06]} 80. Rf8+ {[%emt 0:00:01]} Ke4 {[%emt 0:00:04]} 81. Ke2 {[%emt 0:00:03]} Ra3 {[%emt 0:00:16]} 82. Re8+ {[%emt 0:01:23]} Kd4 {[%emt 0:00:03]} 83. Rd8+ {[%emt 0:00:07]} Ke4 {[%emt 0:00:03]} 84. Rc8 {[%emt 0:00:59]} Kd4 {[%emt 0:00:15]} 85. Rb1 {[%emt 0:00:27]} Ke4 {[%emt 0:00:17]} 86. Rb4+ {[%emt 0:00:18]} Kd5 {[%emt 0:01:16]} 87. Rd8+ {[%emt 0:00:19]} Ke5 {[%emt 0:00:19]} 88. Rb5+ {[%emt 0:00:43]} Ke4 {[%emt 0:00:11]} 89. Rb4+ {[%emt 0:00:41]} Ke5 {[%emt 0:00:09]} 90. Re8+ {[%emt 0:00:31]} Kd5 {[%emt 0:00:13]} 91. Rbb8 {[%emt 0:00:30]} ({Weaker is} 91. Rxe3 Rxe3+ 92. Kxd2 Re6 $11) 91... Kd4 {[%emt 0:00:32]} 92. Rbd8+ {[%emt 0:00:13]} 1-0

[Event "21st Open Gran Hotel Bali-A 2024"]
[Site "Benidorm"]
[Date "2024.11.29"]
[Round "1.15"]
[White "Vazquez Rodriguez, Jorge"]
[Black "Abergel, Thal"]
[Result "1/2-1/2"]
[ECO "A42"]
[WhiteElo "2037"]
[BlackElo "2408"]
[Annotator "TA"]
[PlyCount "40"]
[EventDate "2024.11.26"]
[EventType "swiss"]
[EventCountry "ESP"]
[SourceTitle "playchess.com"]
[Source "ChessBase"]
[SourceQuality "1"]
[TimeControl "5400+30"]

{[%evp 9,40,72,66,53,105,101,111,106,117,107,113,110,151,148,151,141,140,131,139,146,141,108,164,172,167,162,393,358,394,383,401,407,718]} 1. e4 {[%emt 0:00:04]} d6 {[%emt 0:00:14]} 2. d4 {[%emt 0:00:12][%cal Bd2d4,Bd4d5][%mdl 32]} Nc6 {[%emt 0:00:48]} 3. d5 {[%emt 0:04:13]} Nb8 {[%emt 0:00:05]} 4. c4 {[%emt 0:01:46]} g6 {[%emt 0:00:17]} 5. Nc3 {[%emt 0:02:30]} Bg7 {[%emt 0:00:16]} 6. Be3 {[%emt 0:01:17]} c5 {[%emt 0:02:46]} ({Black should try} 6... Bxc3+ $14 7. bxc3 Nf6) 7. Qd2 {[%emt 0:03:51]} Na6 {[%emt 0:00:11]} 8. Bd3 {[%emt 0:01:39] White is better.} Bd7 {[%emt 0:04:23]} 9. Nge2 {[%emt 0:01:00]} Nc7 {[%emt 0:00:52]} 10. O-O {[%emt 0:04:59]} a6 {[%emt 0:02:30][%cal Ba7a6,Ba6a5][%mdl 32]} 11. a4 {[%emt 0:05:17]} a5 {[%emt 0:00:10]} 12. f4 {[%emt 0:02:14]} Na6 {[%emt 0:00:53]} 13. Rae1 {[%emt 0:01:45]} Nb4 {[%emt 0:00:07]} 14. Bb1 {[%emt 0:01:33]} Qc7 {[%emt 0:01:05]} 15. e5 {[%emt 0:06:26]} O-O-O {[%emt 0:03:03]} (15... dxe5 $16 16. h3 b6) 16. exd6 $18 {[%emt 0:00:54]} exd6 {[%emt 0:00:50] [#]} 17. f5 $1 {[%emt 0:00:22]} Re8 $2 {[%emt 0:12:19]} (17... Rf8 18. Ng3 Be5) 18. fxg6 {[%emt 0:05:12] White is winning.} fxg6 {[%emt 0:00:14]} 19. Rf7 {[%emt 0:00:36]} Re7 {[%emt 0:01:54]} 20. Ref1 {[%emt 0:00:27][%cal Of7g7] Black must now prevent Rxg7!} Be8 {[%emt 0:03:11][%mdl 32768] Weighted Error Value: White=0.05 (flawless) /Black=0.33.  Mistake:       	---       	Black=4      Inaccurate:     	---       	Black=1      OK:         	White=5     	Black=3      Best:        	White=1     	---        Strong:       	White=1     	---       . An unexpected result.} (20... Qd8 $142 21. Ne4 (21. Bg5 Rxf7 22. Bxd8 Rxf1+ 23. Kxf1 Kxd8 $18) 21... Be5) 1/2-1/2

[Event "21st Open Gran Hotel Bali-A 2024"]
[Site "Benidorm"]
[Date "2024.11.29"]
[Round "1.16"]
[White "Del Rio De Angelis, Salvador G."]
[Black "Lung, Liviu-Catalin"]
[Result "1-0"]
[ECO "E61"]
[WhiteElo "2400"]
[BlackElo "2028"]
[Annotator "TA"]
[PlyCount "45"]
[EventDate "2024.11.26"]
[EventType "swiss"]
[EventCountry "ESP"]
[SourceTitle "playchess.com"]
[Source "ChessBase"]
[SourceQuality "1"]
[TimeControl "5400+30"]

{[%evp 13,45,15,25,28,57,56,62,57,80,63,75,75,111,88,98,93,95,95,101,89,93,91,95,87,240,239,238,242,252,265,599,585,627,614]} 1. d4 {[%emt 0:00:11]} Nf6 {[%emt 0:00:07]} 2. c4 {[%emt 0:00:06]} g6 {[%emt 0:00:06]} 3. Nf3 {[%emt 0:00:08]} Bg7 {[%emt 0:00:07]} 4. e3 {[%emt 0:00:05]} O-O {[%emt 0:00:19]} 5. Be2 {[%emt 0:00:07]} d6 {[%emt 0:00:50]} 6. Nc3 {[%emt 0:00:23]} Nbd7 {[%emt 0:00:39]} 7. O-O {[%emt 0:00:09]} c6 {[%emt 0:01:22][%cal Bc7c6,Bc6c5][%mdl 32]} 8. e4 {[%emt 0:00:32]} Qc7 {[%emt 0:03:10]} 9. Be3 {[%emt 0:05:29]} a6 {[%emt 0:09:46]} 10. Rc1 {[%emt 0:03:08]} Re8 {[%emt 0:02:07]} 11. h3 {[%emt 0:01:08]} e5 {[%emt 0:05:23]} 12. d5 {[%emt 0:00:10]} c5 {[%emt 0:00:59]} 13. Ne1 {[%emt 0:01:57] White is more active.} Rb8 {[%emt 0:03:04]} 14. a4 {[%emt 0:01:05][%cal Ba2a4,Ba4a5][%mdl 32]} h6 {[%emt 0:04:37]} 15. Ra1 {[%emt 0:12:42]} Nf8 {[%emt 0:07:21]} 16. a5 {[%emt 0:03:08]} g5 {[%emt 0:02:23]} 17. Bg4 {[%emt 0:02:44]} Ng6 {[%emt 0:09:21]} 18. g3 {[%emt 0:02:07][%cal Bg2g3,Bg3g4][%mdl 32]} Nxe4 $2 {[%emt 0:02:40]} 19. Nxe4 $18 {[%emt 0:00:10][%cal Oh3h4] Strongly threatening h4!.} f5 {[%emt 0:00:08]} 20. Bh5 {[%emt 0:00:08]} Kh7 {[%emt 0:01:28]} 21. Nc3 {[%emt 0:02:19]} f4 $2 {[%emt 0:00:38]} (21... Qe7 22. f3 f4) 22. Qc2 {[%emt 0:00:40]} Qf7 {[%emt 0:02:32] [#]} 23. g4 $1 {[%emt 0:00:08]} 1-0

[Event "21st Open Gran Hotel Bali-A 2024"]
[Site "Benidorm"]
[Date "2024.11.29"]
[Round "1.17"]
[White "Bascunana Sanchez, Pablo"]
[Black "Stella, Andrea"]
[Result "0-1"]
[ECO "B51"]
[WhiteElo "2027"]
[BlackElo "2398"]
[Annotator "TA"]
[PlyCount "118"]
[EventDate "2024.11.26"]
[EventType "swiss"]
[EventCountry "ESP"]
[SourceTitle "playchess.com"]
[Source "ChessBase"]
[SourceQuality "1"]
[TimeControl "5400+30"]

{[%evp 9,118,6,12,8,27,30,27,0,0,0,0,0,0,-18,-22,-15,0,-15,0,0,26,6,7,5,16,12,22,-34,-28,-26,-35,-32,-31,-54,-31,-68,-45,-74,-82,-78,-69,-116,-114,-131,-135,-119,-130,-297,-208,-209,-205,-210,-202,-225,-218,-201,-165,-167,-167,-167,-160,-160,-156,-157,-156,-348,-348,-348,-343,-343,-333,-315,-101,-101,-101,-101,-101,-101,-101,-101,-101,-110,-101,-821,-800,-785,-625,-1325,-1214,-730,-497,-29973,-29974,-29974,-29974,-29971,-29972,-29977,-29977,-29976,-29977,-29984,-29983,-29983,-29984,-29984,-29985,-29988,-29989,-29989,-29990]} 1. e4 {[%emt 0:00:03]} c5 {[%emt 0:03:59]} 2. Nf3 {[%emt 0:00:17]} d6 {[%emt 0:00:15]} 3. Bb5+ {[%emt 0:01:52]} Nd7 {[%emt 0:00:12]} 4. a4 {[%emt 0:00:18]} Ngf6 {[%emt 0:02:03]} 5. Nc3 {[%emt 0:00:27]} a6 {[%emt 0:00:47]} 6. Be2 {[%emt 0:00:33]} g6 {[%emt 0:00:13]} 7. O-O {[%emt 0:00:23]} Bg7 {[%emt 0:00:04]} 8. Re1 {[%emt 0:01:19]} b6 {[%emt 0:01:00]} 9. d4 {[%emt 0:04:27]} cxd4 {[%emt 0:00:03]} 10. Nxd4 {[%emt 0:00:23]} Bb7 {[%emt 0:00:05][%cal Oe8g8]} 11. Bf1 {[%emt 0:01:18]} O-O {[%emt 0:00:32]} 12. f3 {[%emt 0:04:17]} Qc7 {[%emt 0:03:15]} 13. Be3 {[%emt 0:06:46]} e6 {[%emt 0:03:05]} 14. Qd2 {[%emt 0:08:47]} d5 {[%emt 0:06:13]} 15. exd5 {[%emt 0:01:22]} Bxd5 {[%emt 0:03:47]} 16. Nxd5 {[%emt 0:02:45]} Nxd5 {[%emt 0:00:00]} 17. Bf2 {[%emt 0:00:35]} Rfd8 {[%emt 0:13:09]} 18. c4 {[%emt 0:04:35]} (18. c3 $11) 18... Nf4 $15 {[%emt 0:06:45]} 19. Qc2 {[%emt 0:23:10]} Nc5 {[%emt 0:04:32] A dynamic duo of knights.} 20. Red1 {[%emt 0:01:11]} e5 {[%emt 0:01:42]} 21. Nb3 {[%emt 0:00:12]} Rxd1 {[%emt 0:09:44]} 22. Qxd1 {[%emt 0:05:40]} a5 {[%emt 0:03:57] Black has more active pieces.} 23. Qc2 {[%emt 0:01:50]} Bf8 {[%emt 0:01:11]} 24. Kh1 {[%emt 0:04:18]} Rd8 {[%emt 0:04:32]} 25. Be3 {[%emt 0:01:31]} (25. Bh4 $15) 25... Nfe6 $17 {[%emt 0:07:13]} 26. Re1 {[%emt 0:08:20]} Nxb3 {[%emt 0:03:10]} 27. Qxb3 {[%emt 0:00:03]} Bc5 {[%emt 0:00:07]} 28. h3 $2 {[%emt 0:04:07] [#]} (28. Rb1 $17) 28... e4 $1 {[%emt 0:05:40][%mdl 512]} 29. Bxc5 {[%emt 0:02:30]} Nxc5 {[%emt 0:00:03]} 30. Qe3 {[%emt 0:02:20]} Qg3 {[%emt 0:03:37]} (30... Nxa4 31. Qxe4 Nc5 (31... Nxb2 $2 32. Qc2 $16) 32. Qc2 $17) 31. fxe4 {[%emt 0:01:18]} Qxe3 {[%emt 0:00:08]} 32. Rxe3 {[%emt 0:00:03]} Nxa4 $19 {[%emt 0:00:11][%cal Od8d2][%mdl 4096] Endgame KRB-KRN} 33. b4 {[%emt 0:00:41]} axb4 {[%emt 0:00:34]} 34. Rb3 {[%emt 0:00:17]} Nc5 {[%emt 0:04:19][%csl LRb3,LRe4][%cal Ba4c5,Bc5e4,Be4d2,Bd2f1][%mdl 32]} 35. Rxb4 {[%emt 0:00:08]} Rd1 {[%emt 0:01:57]} (35... Nxe4 36. Rb1) 36. Kg1 {[%emt 0:00:18]} Nxe4 {[%emt 0:00:03]} 37. Rxb6 $2 {[%emt 0:04:14]} (37. c5 $17 {was the only chance.} Nxc5 38. Rxb6) 37... Kg7 {[%emt 0:00:42]} 38. c5 {[%emt 0:04:20]} Nd2 {[%emt 0:03:02]} (38... Nxc5 39. Rb4 $17) 39. Kf2 {[%emt 0:00:33]} Nxf1 {[%emt 0:00:07] KRN-KR} (39... Rxf1+ 40. Ke2 $15) 40. c6 {[%emt 0:00:30]} Rc1 $2 {[%emt 0:00:15]} (40... Nd2 $19 {is more deadly.} 41. Ke2 Nc4) 41. Rb2 $17 {[%emt 0:00:22]} h5 {[%emt 0:04:12][%cal Oh5h4]} 42. c7 {[%emt 0:00:45]} h4 {[%emt 0:01:00][%cal Of1g3] and ...Ng3! should not be overlooked} 43. c8=Q {[%emt 0:00:15]} Rxc8 {[%emt 0:00:03]} 44. Kxf1 {[%emt 0:00:08] KR-KR. Black is a pawn up.} g5 {[%emt 0:01:24]} 45. Rb3 {[%emt 0:01:08]} Kg6 {[%emt 0:00:15]} 46. g3 $2 {[%emt 0:00:40][%mdl 8192] [#]} (46. Kf2 $17) 46... Rc1+ $1 $19 {[%emt 0:01:46]} 47. Kg2 {[%emt 0:00:06]} Rc2+ {[%emt 0:00:03]} 48. Kg1 {[%emt 0:00:11]} hxg3 {[%emt 0:00:25]} 49. Rxg3 {[%emt 0:00:01]} f5 {[%emt 0:00:15] ( -> ...Kh5)} 50. Ra3 {[%emt 0:00:56] [#]} (50. Rf3 $19 Rc5 51. Ra3) 50... Kh5 $1 {[%emt 0:01:12]} 51. Rb3 {[%emt 0:00:19]} Kh4 {[%emt 0:00:42]} 52. Rb5 {[%emt 0:01:29]} f4 {[%emt 0:00:10]} (52... Kxh3 53. Rxf5 g4 54. Rf1 $11) 53. Rf5 {[%emt 0:00:45]} Rc3 {[%emt 0:00:36]} ({Not} 53... Kxh3 54. Rxg5 Rb2 55. Kf1 $11) 54. Rf8 {[%emt 0:01:44]} Kxh3 {[%emt 0:00:22]} 55. Rg8 {[%emt 0:00:20]} Kg4 {[%emt 0:00:11]} 56. Kg2 {[%emt 0:00:42]} Rc2+ {[%emt 0:00:04]} 57. Kg1 {[%emt 0:00:07]} f3 {[%emt 0:00:05]} 58. Ra8 {[%emt 0:00:36]} Kg3 {[%emt 0:00:13][%cal Rc2c1]} 59. Ra1 {[%emt 0:00:02]} Rg2+ {[%emt 0:00:13]} 0-1